{"text_format":"1","workbook":"xlsx","n_sheets":4,"sheets":["Évaluation risque","Feuil2","Liste","Feuil1"],"not_rendered":{"charts":0,"images":0,"macros":1,"external_links":0,"defined_names":21,"comments":0,"pivot_tables":0},"unopened":[],"bounds":{"document_bytes":16777216,"sheet_cells":100000,"rows_first":2000,"rows_last":500,"rows_between":2000,"halvings":0,"cell_chars":16384,"cell_head_chars":4096},"cells_cut":0,"cells_raw":0,"read":"whole","date_system":"1900"}

{"sheet":"Évaluation risque","index":0,"n_rows":318,"n_cols":12,"rows_kept":318,"cut":false,"hidden":false,"merged":[[1,1,3,7],[5,1,6,1],[5,2,6,2],[5,3,6,3],[5,7,6,7],[5,4,5,6],[4,1,4,7]]}
[]
[null,null,null,null,null,null,null,null,null,null,null,"Faible"]
[null,null,null,null,null,null,null,null,null,null,null,"Modéré"]
[null,null,null,null,null,null,null,null,null,null,null,"Élevé"]
[]
[null,"PROBABILITÉ",null,"IMPACT"]
[]
["R1","Élevé",null,"Élevé",null,null,null,{"$f":"IFERROR(CHOOSE(MAX(MIN(MATCH(B8,$L$2:$L$4,0)+MATCH(D8,$L$2:$L$4,0),5),3)-2,$L$2,$L$3,$L$4),\"\")","v":"Élevé"}]
["R2",null,null,null,null,null,null,{"$f":"IFERROR(CHOOSE(MAX(MIN(MATCH(B9,$L$2:$L$4,0)+MATCH(D9,$L$2:$L$4,0),5),3)-2,$L$2,$L$3,$L$4),\"\")","v":""}]
["R3","Faible",null,"Faible",null,null,null,"Faible"]
["R4","Modéré",null,"Élevé",null,null,null,"Élevé"]
["R5","Modéré",null,"Modéré",null,null,null,"Modéré"]
["R6",null,null,null,null,null,null,""]
["R7",null,null,null,null,null,null,""]
["R8","Faible",null,"Modéré",null,null,null,"Faible"]
["R9","Faible",null,"Faible",null,null,null,"Faible"]
["R10","Faible",null,"Modéré",null,null,null,"Faible"]
["R11","Modéré",null,"Élevé",null,null,null,"Élevé"]
["R12","Modéré",null,"Élevé",null,null,null,"Élevé"]
["R13","Modéré",null,"Élevé",null,null,null,"Élevé"]
["R14",null,null,null,null,null,null,""]
["R15","Élevé",null,"Élevé",null,null,null,"Élevé"]
["R16","Élevé",null,"Élevé",null,null,null,"Élevé"]
["R17","Élevé",null,"Élevé",null,null,null,"Élevé"]
["R18",null,null,null,null,null,null,""]
["R19",null,null,null,null,null,null,""]
["R20","Modéré",null,"Modéré",null,null,null,"Modéré"]
["R21","Faible",null,"Modéré",null,null,null,"Faible"]
["R22",null,null,null,null,null,null,""]
["R23",null,null,null,null,null,null,""]
["R24",null,null,null,null,null,null,""]
["R25",null,null,null,null,null,null,""]
["R26",null,null,null,null,null,null,""]
["R27","Faible",null,"Faible",null,null,null,"Faible"]
["R28","Faible",null,"Faible",null,null,null,"Faible"]
["R29",null,null,null,null,null,null,""]
["R30","Élevé",null,"Élevé",null,null,null,"Élevé"]
["R31","Modéré",null,"Faible",null,null,null,"Faible"]
["R32",null,null,null,null,null,null,""]
["R33","Élevé",null,"Modéré",null,null,null,"Élevé"]
["R34","Modéré",null,"Modéré",null,null,null,"Modéré"]
["R35","Faible",null,"Faible",null,null,null,"Faible"]
["R36","Modéré",null,"Modéré",null,null,null,"Modéré"]
[null,null,null,null,null,null,null,""]
[null,null,null,null,null,null,null,""]
[null,null,null,null,null,null,null,""]
[null,null,null,null,null,null,null,""]
[null,null,null,null,null,null,null,""]
[null,null,null,null,null,null,null,""]
[null,null,null,null,null,null,null,""]
[null,null,null,null,null,null,null,""]
[null,null,null,null,null,null,null,""]
[null,null,null,null,null,null,null,""]
[null,null,null,null,null,null,null,""]
[null,null,null,null,null,null,null,""]
[null,null,null,null,null,null,null,""]
[null,null,null,null,null,null,null,""]
[null,null,null,null,null,null,null,""]
[null,null,null,null,null,null,null,""]
[null,null,null,null,null,null,null,""]
[null,null,null,null,null,null,null,""]
[null,null,null,null,null,null,null,""]
[null,null,null,null,null,null,null,""]
[null,null,null,null,null,null,null,""]
[null,null,null,null,null,null,null,""]
[null,null,null,null,null,null,null,""]
[null,null,null,null,null,null,null,""]
[null,null,null,null,null,null,null,""]
[null,null,null,null,null,null,null,""]
[null,null,null,null,null,null,null,""]
[null,null,null,null,null,null,null,""]
[null,null,null,null,null,null,null,""]
[null,null,null,null,null,null,null,{"$f":"IFERROR(CHOOSE(MAX(MIN(MATCH(B73,$L$2:$L$4,0)+MATCH(D73,$L$2:$L$4,0),5),3)-2,$L$2,$L$3,$L$4),\"\")","v":""}]
[null,null,null,null,null,null,null,""]
[null,null,null,null,null,null,null,""]
[null,null,null,null,null,null,null,""]
[null,null,null,null,null,null,null,""]
[null,null,null,null,null,null,null,""]
[null,null,null,null,null,null,null,""]
[null,null,null,null,null,null,null,""]
[null,null,null,null,null,null,null,""]
[null,null,null,null,null,null,null,""]
[null,null,null,null,null,null,null,""]
[null,null,null,null,null,null,null,""]
[null,null,null,null,null,null,null,""]
[null,null,null,null,null,null,null,""]
[null,null,null,null,null,null,null,""]
[null,null,null,null,null,null,null,""]
[null,null,null,null,null,null,null,""]
[null,null,null,null,null,null,null,""]
[null,null,null,null,null,null,null,""]
[null,null,null,null,null,null,null,""]
[null,null,null,null,null,null,null,""]
[null,null,null,null,null,null,null,""]
[null,null,null,null,null,null,null,""]
[null,null,null,null,null,null,null,""]
[null,null,null,null,null,null,null,""]
[null,null,null,null,null,null,null,""]
[null,null,null,null,null,null,null,""]
[null,null,null,null,null,null,null,""]
[null,null,null,null,null,null,null,""]
[null,null,null,null,null,null,null,""]
[null,null,null,null,null,null,null,""]
[null,null,null,null,null,null,null,""]
[null,null,null,null,null,null,null,""]
[null,null,null,null,null,null,null,""]
[null,null,null,null,null,null,null,""]
[null,null,null,null,null,null,null,""]
[null,null,null,null,null,null,null,""]
[null,null,null,null,null,null,null,""]
[null,null,null,null,null,null,null,""]
[null,null,null,null,null,null,null,""]
[null,null,null,null,null,null,null,""]
[null,null,null,null,null,null,null,""]
[null,null,null,null,null,null,null,""]
[null,null,null,null,null,null,null,""]
[null,null,null,null,null,null,null,""]
[null,null,null,null,null,null,null,""]
[null,null,null,null,null,null,null,""]
[null,null,null,null,null,null,null,""]
[null,null,null,null,null,null,null,""]
[null,null,null,null,null,null,null,""]
[null,null,null,null,null,null,null,""]
[null,null,null,null,null,null,null,""]
[null,null,null,null,null,null,null,""]
[null,null,null,null,null,null,null,""]
[null,null,null,null,null,null,null,""]
[null,null,null,null,null,null,null,""]
[null,null,null,null,null,null,null,""]
[null,null,null,null,null,null,null,""]
[null,null,null,null,null,null,null,""]
[null,null,null,null,null,null,null,""]
[null,null,null,null,null,null,null,""]
[null,null,null,null,null,null,null,""]
[null,null,null,null,null,null,null,""]
[null,null,null,null,null,null,null,""]
[null,null,null,null,null,null,null,{"$f":"IFERROR(CHOOSE(MAX(MIN(MATCH(B137,$L$2:$L$4,0)+MATCH(D137,$L$2:$L$4,0),5),3)-2,$L$2,$L$3,$L$4),\"\")","v":""}]
[null,null,null,null,null,null,null,""]
[null,null,null,null,null,null,null,""]
[null,null,null,null,null,null,null,""]
[null,null,null,null,null,null,null,""]
[null,null,null,null,null,null,null,""]
[null,null,null,null,null,null,null,""]
[null,null,null,null,null,null,null,""]
[null,null,null,null,null,null,null,""]
[null,null,null,null,null,null,null,""]
[null,null,null,null,null,null,null,""]
[null,null,null,null,null,null,null,""]
[null,null,null,null,null,null,null,""]
[null,null,null,null,null,null,null,""]
[null,null,null,null,null,null,null,""]
[null,null,null,null,null,null,null,""]
[null,null,null,null,null,null,null,""]
[null,null,null,null,null,null,null,""]
[null,null,null,null,null,null,null,""]
[null,null,null,null,null,null,null,""]
[null,null,null,null,null,null,null,""]
[null,null,null,null,null,null,null,""]
[null,null,null,null,null,null,null,""]
[null,null,null,null,null,null,null,""]
[null,null,null,null,null,null,null,""]
[null,null,null,null,null,null,null,""]
[null,null,null,null,null,null,null,""]
[null,null,null,null,null,null,null,""]
[null,null,null,null,null,null,null,""]
[null,null,null,null,null,null,null,""]
[null,null,null,null,null,null,null,""]
[null,null,null,null,null,null,null,""]
[null,null,null,null,null,null,null,""]
[null,null,null,null,null,null,null,""]
[null,null,null,null,null,null,null,""]
[null,null,null,null,null,null,null,""]
[null,null,null,null,null,null,null,""]
[null,null,null,null,null,null,null,""]
[null,null,null,null,null,null,null,""]
[null,null,null,null,null,null,null,""]
[null,null,null,null,null,null,null,""]
[null,null,null,null,null,null,null,""]
[null,null,null,null,null,null,null,""]
[null,null,null,null,null,null,null,""]
[null,null,null,null,null,null,null,""]
[null,null,null,null,null,null,null,""]
[null,null,null,null,null,null,null,""]
[null,null,null,null,null,null,null,""]
[null,null,null,null,null,null,null,""]
[null,null,null,null,null,null,null,""]
[null,null,null,null,null,null,null,""]
[null,null,null,null,null,null,null,""]
[null,null,null,null,null,null,null,""]
[null,null,null,null,null,null,null,""]
[null,null,null,null,null,null,null,""]
[null,null,null,null,null,null,null,""]
[null,null,null,null,null,null,null,""]
[null,null,null,null,null,null,null,""]
[null,null,null,null,null,null,null,""]
[null,null,null,null,null,null,null,""]
[null,null,null,null,null,null,null,""]
[null,null,null,null,null,null,null,""]
[null,null,null,null,null,null,null,""]
[null,null,null,null,null,null,null,""]
[null,null,null,null,null,null,null,{"$f":"IFERROR(CHOOSE(MAX(MIN(MATCH(B201,$L$2:$L$4,0)+MATCH(D201,$L$2:$L$4,0),5),3)-2,$L$2,$L$3,$L$4),\"\")","v":""}]
[null,null,null,null,null,null,null,""]
[null,null,null,null,null,null,null,""]
[null,null,null,null,null,null,null,""]
[null,null,null,null,null,null,null,""]
[null,null,null,null,null,null,null,""]
[null,null,null,null,null,null,null,""]
[null,null,null,null,null,null,null,""]
[null,null,null,null,null,null,null,""]
[null,null,null,null,null,null,null,""]
[null,null,null,null,null,null,null,""]
[null,null,null,null,null,null,null,""]
[null,null,null,null,null,null,null,""]
[null,null,null,null,null,null,null,""]
[null,null,null,null,null,null,null,""]
[null,null,null,null,null,null,null,""]
[null,null,null,null,null,null,null,""]
[null,null,null,null,null,null,null,""]
[null,null,null,null,null,null,null,""]
[null,null,null,null,null,null,null,""]
[null,null,null,null,null,null,null,""]
[null,null,null,null,null,null,null,""]
[null,null,null,null,null,null,null,""]
[null,null,null,null,null,null,null,""]
[null,null,null,null,null,null,null,""]
[null,null,null,null,null,null,null,""]
[null,null,null,null,null,null,null,""]
[null,null,null,null,null,null,null,""]
[null,null,null,null,null,null,null,""]
[null,null,null,null,null,null,null,""]
[null,null,null,null,null,null,null,""]
[null,null,null,null,null,null,null,""]
[null,null,null,null,null,null,null,""]
[null,null,null,null,null,null,null,""]
[null,null,null,null,null,null,null,""]
[null,null,null,null,null,null,null,""]
[null,null,null,null,null,null,null,""]
[null,null,null,null,null,null,null,""]
[null,null,null,null,null,null,null,""]
[null,null,null,null,null,null,null,""]
[null,null,null,null,null,null,null,""]
[null,null,null,null,null,null,null,""]
[null,null,null,null,null,null,null,""]
[null,null,null,null,null,null,null,""]
[null,null,null,null,null,null,null,""]
[null,null,null,null,null,null,null,""]
[null,null,null,null,null,null,null,""]
[null,null,null,null,null,null,null,""]
[null,null,null,null,null,null,null,""]
[null,null,null,null,null,null,null,""]
[null,null,null,null,null,null,null,""]
[null,null,null,null,null,null,null,""]
[null,null,null,null,null,null,null,""]
[null,null,null,null,null,null,null,""]
[null,null,null,null,null,null,null,""]
[null,null,null,null,null,null,null,""]
[null,null,null,null,null,null,null,""]
[null,null,null,null,null,null,null,""]
[null,null,null,null,null,null,null,""]
[null,null,null,null,null,null,null,""]
[null,null,null,null,null,null,null,""]
[null,null,null,null,null,null,null,""]
[null,null,null,null,null,null,null,""]
[null,null,null,null,null,null,null,""]
[null,null,null,null,null,null,null,{"$f":"IFERROR(CHOOSE(MAX(MIN(MATCH(B265,$L$2:$L$4,0)+MATCH(D265,$L$2:$L$4,0),5),3)-2,$L$2,$L$3,$L$4),\"\")","v":""}]
[null,null,null,null,null,null,null,""]
[null,null,null,null,null,null,null,""]
[null,null,null,null,null,null,null,""]
[null,null,null,null,null,null,null,""]
[null,null,null,null,null,null,null,""]
[null,null,null,null,null,null,null,""]
[null,null,null,null,null,null,null,""]
[null,null,null,null,null,null,null,""]
[null,null,null,null,null,null,null,""]
[null,null,null,null,null,null,null,""]
[null,null,null,null,null,null,null,""]
[null,null,null,null,null,null,null,""]
[null,null,null,null,null,null,null,""]
[null,null,null,null,null,null,null,""]
[null,null,null,null,null,null,null,""]
[null,null,null,null,null,null,null,""]
[null,null,null,null,null,null,null,""]
[null,null,null,null,null,null,null,""]
[null,null,null,null,null,null,null,""]
[null,null,null,null,null,null,null,""]
[null,null,null,null,null,null,null,""]
[null,null,null,null,null,null,null,""]
[null,null,null,null,null,null,null,""]
[null,null,null,null,null,null,null,""]
[null,null,null,null,null,null,null,""]
[null,null,null,null,null,null,null,""]
[null,null,null,null,null,null,null,""]
[null,null,null,null,null,null,null,""]
[null,null,null,null,null,null,null,""]
[null,null,null,null,null,null,null,""]
[null,null,null,null,null,null,null,""]
[null,null,null,null,null,null,null,""]
[null,null,null,null,null,null,null,""]
[null,null,null,null,null,null,null,""]
[null,null,null,null,null,null,null,""]
[null,null,null,null,null,null,null,""]
[null,null,null,null,null,null,null,""]
[null,null,null,null,null,null,null,""]
[null,null,null,null,null,null,null,""]
[null,null,null,null,null,null,null,""]
[null,null,null,null,null,null,null,""]
[null,null,null,null,null,null,null,""]
[null,null,null,null,null,null,null,""]
[null,null,null,null,null,null,null,""]
[null,null,null,null,null,null,null,""]
[null,null,null,null,null,null,null,""]
[null,null,null,null,null,null,null,""]
[null,null,null,null,null,null,null,""]
[null,null,null,null,null,null,null,""]
[null,null,null,null,null,null,null,""]
[null,null,null,null,null,null,null,""]
[null,null,null,null,null,null,null,""]
[null,null,null,null,null,null,null,""]

{"sheet":"Feuil2","index":1,"n_rows":39,"n_cols":6,"rows_kept":39,"cut":false,"hidden":false,"merged":[]}
[]
[]
[null,null,null,null,null,"RISQUE INHÉRENT"]
[null,null,null,null,"R1",{"$f":"'Évaluation risque'!H8","v":"Élevé"}]
[null,null,null,null,"R2",{"$f":"'Évaluation risque'!H9","v":""}]
[null,null,null,null,"R3",{"$f":"'Évaluation risque'!H10","v":"Faible"}]
[null,null,null,null,"R4",{"$f":"'Évaluation risque'!H11","v":"Élevé"}]
[null,null,null,null,"R5",{"$f":"'Évaluation risque'!H12","v":"Modéré"}]
[null,null,null,null,"R6",{"$f":"'Évaluation risque'!H13","v":""}]
[null,null,null,null,"R7",{"$f":"'Évaluation risque'!H14","v":""}]
[null,null,null,null,"R8",{"$f":"'Évaluation risque'!H15","v":"Faible"}]
[null,null,null,null,"R9",{"$f":"'Évaluation risque'!H16","v":"Faible"}]
[null,null,null,null,"R10",{"$f":"'Évaluation risque'!H17","v":"Faible"}]
[null,null,null,null,"R11",{"$f":"'Évaluation risque'!H18","v":"Élevé"}]
[null,null,null,null,"R12",{"$f":"'Évaluation risque'!H19","v":"Élevé"}]
[null,null,null,null,"R13",{"$f":"'Évaluation risque'!H20","v":"Élevé"}]
[null,null,null,null,"R14",{"$f":"'Évaluation risque'!H21","v":""}]
[null,null,null,null,"R15",{"$f":"'Évaluation risque'!H22","v":"Élevé"}]
[null,null,null,null,"R16",{"$f":"'Évaluation risque'!H23","v":"Élevé"}]
[null,null,null,null,"R17",{"$f":"'Évaluation risque'!H24","v":"Élevé"}]
[null,null,null,null,"R18",{"$f":"'Évaluation risque'!H25","v":""}]
[null,null,null,null,"R19",{"$f":"'Évaluation risque'!H26","v":""}]
[null,null,null,null,"R20",{"$f":"'Évaluation risque'!H27","v":"Modéré"}]
[null,null,null,null,"R21",{"$f":"'Évaluation risque'!H28","v":"Faible"}]
[null,null,null,null,"R22",{"$f":"'Évaluation risque'!H29","v":""}]
[null,null,null,null,"R23",{"$f":"'Évaluation risque'!H30","v":""}]
[null,null,null,null,"R24",{"$f":"'Évaluation risque'!H31","v":""}]
[null,null,null,null,"R25",{"$f":"'Évaluation risque'!H32","v":""}]
[null,null,null,null,"R26",{"$f":"'Évaluation risque'!H33","v":""}]
[null,null,null,null,"R27",{"$f":"'Évaluation risque'!H34","v":"Faible"}]
[null,null,null,null,"R28",{"$f":"'Évaluation risque'!H35","v":"Faible"}]
[null,null,null,null,"R29",{"$f":"'Évaluation risque'!H36","v":""}]
[null,null,null,null,"R30",{"$f":"'Évaluation risque'!H37","v":"Élevé"}]
[null,null,null,null,"R31",{"$f":"'Évaluation risque'!H38","v":"Faible"}]
[null,null,null,null,"R32",{"$f":"'Évaluation risque'!H39","v":""}]
[null,null,null,null,"R33",{"$f":"'Évaluation risque'!H40","v":"Élevé"}]
[null,null,null,null,"R34",{"$f":"'Évaluation risque'!H41","v":"Modéré"}]
[null,null,null,null,"R35",{"$f":"'Évaluation risque'!H42","v":"Faible"}]
[null,null,null,null,"R36",{"$f":"'Évaluation risque'!H43","v":"Modéré"}]

{"sheet":"Liste","index":2,"n_rows":7,"n_cols":24,"rows_kept":7,"cut":false,"hidden":false,"merged":[[0,0,0,20]]}
["Listes déroulantes"]
["Fréquence","Chiffre1","Financier","Chiffre 2","Réglementaire","Chiffre3","Délai client","Chiffre4","Bilan","Chiffre42","erreur client","Chiffre5","Colonne1","Colonne2","Colonne3","Colonne4","Colonne5","Colonne6","Colonne7","Colonne8","Colonne9","Colonne10","Probabilité ","Impact financier (annuel)"]
["0 à 10",1,"0 à 1000",1,"Aucune exigence",1,"Non significatif",1,"0 à 10",1,"Données client non modifiées",1,null,null,null,null,null,null,null,null,null,null,"Élevé","Élevé"]
["11 à 30",2,"1001 à 5000",2,"Exigence sans sanction",2,"Significatif",2,"10 à 100",2,"Données clients corrigeables et sans impact",2,null,null,null,null,null,null,null,null,null,null,"Modéré","Modéré"]
["31 à 50",3,"5001 à 25000",3,"Exigence avec sanction",3,"Critique",3,"100 à 1000",3,"Données client corrigeables et avec impact",3,null,null,null,null,null,null,null,null,null,null,"Faible","Faible"]
["51 à 100",4,"25001 à 100000",4,null,4,null,4,"1000 à 10000",4,"Données client difficilement corrigeables et sans impact",4]
["100 et +",5,"100000 et +",5,null,5,null,5,"10000 et +",5,"Données client difficilement corrigeables et avec impact",5]

{"sheet":"Feuil1","index":3,"n_rows":0,"n_cols":0,"rows_kept":0,"cut":false,"hidden":true,"merged":[]}